[Event "44th Chess Olympiad Women 2022"]
[Site "Chennai"]
[Date "2022.08.06"]
[Round "8.48"]
[White "Granados Diaz, Maria Esther"]
[Black "Thornton, Filipina"]
[Result "1-0"]
[WhiteElo "1888"]
[BlackElo "1661"]
[Annotator "NA RC"]
[PlyCount "71"]
[EventDate "2022.??.??"]
[TimeControl "60"]

1. e4 {[%emt 0:00:02]} c5 {[%emt 0:00:07]} 2. Nf3 {[%emt 0:00:05]} e6 {[%emt 0:
00:00]} 3. d4 {[%emt 0:00:04]} cxd4 {[%emt 0:00:05]} 4. Nxd4 {[%emt 0:00:06]}
d6 {[%emt 0:00:07]} 5. Nc3 {[%emt 0:01:19]} Nf6 {[%emt 0:00:51]} 6. Bg5 {
[%emt 0:00:12]} a6 {[%emt 0:00:16]} 7. f4 {[%emt 0:00:08]} h6 {[%emt 0:00:14]}
8. Bh4 {[%emt 0:00:05]} Qb6 {[%emt 0:00:44]} 9. a3 {[%emt 0:00:08]} Nc6 {
[%emt 0:01:09]} 10. Bf2 {[%emt 0:00:20]} Qc7 {[%emt 0:02:48]} 11. Qf3 {[%emt 0:
00:00]} Be7 {[%emt 0:01:07]} 12. O-O-O {[%emt 0:01:16]} Nxd4 {[%emt 0:04:08]}
13. Rxd4 {[%emt 0:01:22]} b5 {[%emt 0:02:40]} 14. h3 {[%emt 0:13:17]} Bb7 {
[%emt 0:01:32]} 15. Kb1 {[%emt 0:04:50]} Rc8 {[%emt 0:02:12]} 16. f5 {[%emt 0:
00:00]} e5 {[%emt 0:05:32]} 17. Rd2 {[%emt 0:04:43]} O-O {[%emt 0:06:55]} 18.
g4 {[%emt 0:00:24]} Nd7 {[%emt 0:02:40]} 19. h4 {[%emt 0:00:22]} Qd8 {[%emt 0:
00:00]} 20. g5 {[%emt 0:04:58]} hxg5 {[%emt 0:13:20]} 21. hxg5 {[%emt 0:00:07]}
Bxg5 {[%emt 0:00:13]} 22. Qh5 {[%emt 0:00:33]} Bh6 {[%emt 0:00:36]} 23. Rxd6 {
[%emt 0:01:23]} Rc6 {[%emt 0:04:15]} 24. Bh4 {[%emt 0:21:28]} Qc7 {[%emt 0:00:
00]} 25. Rxc6 {[%emt 0:00:47]} Qxc6 {[%emt 0:12:08]} 26. Nd5 {[%emt 0:00:17]}
Re8 {[%emt 0:00:55]} 27. f6 {[%emt 0:04:09]} Kf8 {[%emt 0:07:20]} 28. Bg5 {
[%emt 0:01:45]} Nxf6 {[%emt 0:07:26]} 29. Bxf6 {[%emt 0:03:03]} Re6 {[%emt 0:
00:00]} 30. Bg5 {[%emt 0:01:46]} Qc5 {[%emt 0:01:01]} 31. Bh3 {[%emt 0:03:57]}
Bxd5 {[%emt 0:01:05]} 32. exd5 {[%emt 0:00:22]} Rg6 {[%emt 0:00:13]} 33. Bxh6 {
[%emt 0:01:14]} Rxh6 {[%emt 0:01:04]} 34. Qxe5 {[%emt 0:00:34]} Rd6 {[%emt 0:
00:00]} 35. Bd7 {[%emt 0:02:29]} Re6 {[%emt 0:02:38]} 36. Qb8+ {[%emt 0:02:21]}
1-0

[Event "44th Chess Olympiad Women 2022"]
[Site "Chennai"]
[Date "2022.08.06"]
[Round "8.48"]
[White "Psaila, Uranchimeg"]
[Black "Ferrufino, Michelle"]
[Result "0-1"]
[WhiteElo "1395"]
[BlackElo "1811"]
[Annotator "NA RC"]
[PlyCount "82"]
[EventDate "2022.??.??"]
[TimeControl "60"]

1. d4 {[%emt 0:00:05]} d5 {[%emt 0:00:15]} 2. Bf4 {[%emt 0:00:17]} Nf6 {
[%emt 0:00:28]} 3. h3 {[%emt 0:02:59]} e6 {[%emt 0:00:39]} 4. Nf3 {[%emt 0:00:
00]} Bd6 {[%emt 0:00:46]} 5. Ne5 {[%emt 0:03:50]} O-O {[%emt 0:01:36]} 6. e3 {
[%emt 0:01:50]} c5 {[%emt 0:00:20]} 7. c3 {[%emt 0:00:40]} Qc7 {[%emt 0:00:25]}
8. Nd2 {[%emt 0:02:18]} Nbd7 {[%emt 0:00:11]} 9. Ndf3 {[%emt 0:01:25]} Ne4 {
[%emt 0:00:36]} 10. Bd3 {[%emt 0:05:48]} f6 {[%emt 0:02:14]} 11. Nxd7 {[%emt 0:
00:00]} Bxd7 {[%emt 0:00:22]} 12. Bxd6 {[%emt 0:01:28]} Nxd6 {[%emt 0:00:46]}
13. O-O {[%emt 0:03:06]} Bb5 {[%emt 0:01:40]} 14. dxc5 {[%emt 0:03:01]} Qxc5 {
[%emt 0:01:32]} 15. Nd4 {[%emt 0:00:33]} Rae8 {[%emt 0:06:54]} 16. Nb3 {
[%emt 0:07:45]} Qb6 {[%emt 0:01:51]} 17. Rb1 {[%emt 0:05:17]} Nc4 {[%emt 0:00:
00]} 18. Re1 {[%emt 0:05:56]} Nd6 {[%emt 0:07:30]} 19. Bc2 {[%emt 0:01:35]} Bc4
{[%emt 0:03:08]} 20. Nc1 {[%emt 0:06:52]} f5 {[%emt 0:02:33]} 21. b3 {[%emt 0:
00:00]} Ba6 {[%emt 0:01:58]} 22. Ne2 {[%emt 0:03:16]} Bxe2 {[%emt 0:01:37]} 23.
Qxe2 {[%emt 0:00:24]} Rc8 {[%emt 0:06:08]} 24. c4 {[%emt 0:04:31]} Qc7 {
[%emt 0:01:54]} 25. Rec1 {[%emt 0:03:53]} dxc4 {[%emt 0:02:31]} 26. bxc4 {
[%emt 0:01:52]} b6 {[%emt 0:05:13]} 27. Bb3 {[%emt 0:01:44]} Qc5 {[%emt 0:00:
00]} 28. Rc2 {[%emt 0:04:17]} Ne4 {[%emt 0:04:55]} 29. Rbc1 {[%emt 0:01:36]}
Rfd8 {[%emt 0:01:13]} 30. Rd1 {[%emt 0:02:27]} Qe5 {[%emt 0:01:07]} 31. Rxd8+ {
[%emt 0:05:30]} Rxd8 {[%emt 0:00:15]} 32. Qe1 {[%emt 0:01:06]} Qd6 {[%emt 0:00:
00]} 33. Rc1 {[%emt 0:00:56]} Qd2 {[%emt 0:04:03]} 34. Kf1 {[%emt 0:04:26]}
Nxf2 {[%emt 0:05:26]} 35. Rc2 {[%emt 0:02:22]} Qxe1+ {[%emt 0:01:05]} 36. Kxe1
{[%emt 0:00:17]} Nd3+ {[%emt 0:00:37]} 37. Ke2 {[%emt 0:00:26]} Nc5 {[%emt 0:
00:00]} 38. Rc1 {[%emt 0:01:46]} Kf7 {[%emt 0:02:41]} 39. Rf1 {[%emt 0:00:27]}
Ne4 {[%emt 0:00:37]} 40. Kf3 {[%emt 0:01:53]} Nd2+ {[%emt 0:00:15]} 41. Ke2 {
[%emt 0:31:53]} Nxf1 {[%emt 0:00:41]} 0-1

[Event "44th Chess Olympiad Women 2022"]
[Site "Chennai"]
[Date "2022.08.06"]
[Round "8.49"]
[White "Eman Sawan"]
[Black "Badenhorst, Chloe"]
[Result "1/2-1/2"]
[WhiteElo "1847"]
[BlackElo "1703"]
[Annotator "NA RC"]
[PlyCount "94"]
[EventDate "2022.??.??"]
[TimeControl "60"]

1. e4 {[%emt 0:00:03]} c5 {[%emt 0:00:04]} 2. Nf3 {[%emt 0:00:05]} Nc6 {
[%emt 0:00:08]} 3. Bb5 {[%emt 0:00:07]} Nd4 {[%emt 0:01:32]} 4. Nxd4 {[%emt 0:
00:00]} cxd4 {[%emt 0:00:06]} 5. O-O {[%emt 0:02:39]} e6 {[%emt 0:04:12]} 6. c3
{[%emt 0:02:25]} dxc3 {[%emt 0:05:21]} 7. Nxc3 {[%emt 0:00:24]} Ne7 {[%emt 0:
00:00]} 8. d4 {[%emt 0:02:34]} Ng6 {[%emt 0:02:41]} 9. Be3 {[%emt 0:09:55]} Be7
{[%emt 0:21:55]} 10. a4 {[%emt 0:15:08]} O-O {[%emt 0:02:22]} 11. Rc1 {[%emt 0:
00:00]} d5 {[%emt 0:04:54]} 12. e5 {[%emt 0:01:56]} Bd7 {[%emt 0:06:18]} 13.
Qb3 {[%emt 0:07:45]} a6 {[%emt 0:02:29]} 14. Bxd7 {[%emt 0:03:11]} Qxd7 {
[%emt 0:00:07]} 15. a5 {[%emt 0:00:16]} Bd8 {[%emt 0:18:58]} 16. Qa3 {[%emt 0:
00:00]} Be7 {[%emt 0:02:16]} 17. Qb3 {[%emt 0:15:04]} Bd8 {[%emt 0:00:30]} 18.
Ra1 {[%emt 0:00:55]} Rc8 {[%emt 0:03:38]} 19. Na4 {[%emt 0:01:52]} Rc4 {
[%emt 0:02:57]} 20. Nc5 {[%emt 0:01:08]} Rxc5 {[%emt 0:01:10]} 21. dxc5 {
[%emt 0:00:14]} Nxe5 {[%emt 0:00:12]} 22. Rfd1 {[%emt 0:02:17]} Bf6 {[%emt 0:
00:00]} 23. Bd4 {[%emt 0:00:46]} Rc8 {[%emt 0:01:24]} 24. Qg3 {[%emt 0:01:41]}
Qc7 {[%emt 0:01:25]} 25. b4 {[%emt 0:03:06]} Nd7 {[%emt 0:01:35]} 26. Qxc7 {
[%emt 0:00:35]} Rxc7 {[%emt 0:00:04]} 27. Bxf6 {[%emt 0:00:04]} Nxf6 {[%emt 0:
00:00]} 28. f3 {[%emt 0:00:29]} Nd7 {[%emt 0:01:14]} 29. Re1 {[%emt 0:00:41]}
Nb8 {[%emt 0:00:41]} 30. Rad1 {[%emt 0:03:09]} g6 {[%emt 0:01:02]} 31. g4 {
[%emt 0:02:09]} Nc6 {[%emt 0:01:25]} 32. Rb1 {[%emt 0:00:12]} Nd4 {[%emt 0:00:
00]} 33. Kg2 {[%emt 0:00:30]} Kf8 {[%emt 0:03:22]} 34. Red1 {[%emt 0:01:14]}
Nb5 {[%emt 0:01:18]} 35. Rd3 {[%emt 0:00:41]} Ke7 {[%emt 0:01:56]} 36. f4 {
[%emt 0:00:23]} Kf6 {[%emt 0:01:10]} 37. Re1 {[%emt 0:01:06]} h6 {[%emt 0:00:
00]} 38. h4 {[%emt 0:00:06]} h5 {[%emt 0:01:01]} 39. g5+ {[%emt 0:00:12]} Kg7 {
[%emt 0:00:39]} 40. Kf3 {[%emt 0:01:03]} Rc6 {[%emt 0:00:26]} 41. f5 {[%emt 0:
00:00]} gxf5 {[%emt 0:02:10]} 42. g6 {[%emt 0:00:00]} fxg6 {[%emt 0:09:32]} 43.
Kf4 {[%emt 0:00:00]} Kf6 {[%emt 0:02:18]} 44. Ke3 {[%emt 0:00:00]} Nc7 {
[%emt 0:03:07]} 45. Kf4 {[%emt 0:00:00]} Nb5 {[%emt 0:00:17]} 46. Ke3 {[%emt 0:
00:00]} Nc7 {[%emt 0:00:05]} 47. Kf4 {[%emt 0:00:00]} Nb5 {[%emt 0:00:38]}
1/2-1/2

[Event "44th Chess Olympiad Women 2022"]
[Site "Chennai"]
[Date "2022.08.06"]
[Round "8.49"]
[White "Selkirk, Rebecca"]
[Black "Seder, Randa"]
[Result "1-0"]
[WhiteElo "1745"]
[BlackElo "1442"]
[Annotator "NA RC"]
[PlyCount "109"]
[EventDate "2022.??.??"]
[TimeControl "60"]

1. e4 {[%emt 0:00:03]} e5 {[%emt 0:00:16]} 2. d4 {[%emt 0:00:08]} exd4 {
[%emt 0:00:18]} 3. Qxd4 {[%emt 0:00:07]} Nc6 {[%emt 0:00:28]} 4. Qe3 {[%emt 0:
00:00]} Nf6 {[%emt 0:00:29]} 5. Nc3 {[%emt 0:00:11]} Bb4 {[%emt 0:00:18]} 6.
Bd2 {[%emt 0:00:07]} O-O {[%emt 0:01:07]} 7. O-O-O {[%emt 0:00:15]} Re8 {
[%emt 0:02:33]} 8. Qg3 {[%emt 0:00:24]} Nxe4 {[%emt 0:05:34]} 9. Nxe4 {[%emt 0:
00:00]} Rxe4 {[%emt 0:01:49]} 10. c3 {[%emt 0:00:08]} Bc5 {[%emt 0:01:31]} 11.
Bd3 {[%emt 0:00:53]} Re8 {[%emt 0:02:17]} 12. h4 {[%emt 0:03:23]} Qf6 {[%emt 0:
00:00]} 13. f3 {[%emt 0:02:30]} h6 {[%emt 0:02:45]} 14. Nh3 {[%emt 0:03:00]}
Be3 {[%emt 0:03:49]} 15. Bxe3 {[%emt 0:10:41]} Rxe3 {[%emt 0:00:26]} 16. Rhe1 {
[%emt 0:00:08]} Qe5 {[%emt 0:08:23]} 17. Qf2 {[%emt 0:01:08]} Rxd3 {[%emt 0:00:
00]} 18. Rxe5 {[%emt 0:10:15]} Nxe5 {[%emt 0:00:22]} 19. Qe2 {[%emt 0:01:20]}
Rxd1+ {[%emt 0:00:57]} 20. Kxd1 {[%emt 0:00:07]} d6 {[%emt 0:00:31]} 21. Qe4 {
[%emt 0:05:31]} Bxh3 {[%emt 0:03:24]} 22. Qxb7 {[%emt 0:01:04]} Re8 {[%emt 0:
00:00]} 23. gxh3 {[%emt 0:00:08]} Re7 {[%emt 0:00:31]} 24. f4 {[%emt 0:01:04]}
Ng6 {[%emt 0:00:28]} 25. h5 {[%emt 0:01:06]} Nf8 {[%emt 0:01:33]} 26. Qxa7 {
[%emt 0:00:57]} g6 {[%emt 0:01:09]} 27. hxg6 {[%emt 0:02:22]} fxg6 {[%emt 0:00:
00]} 28. a4 {[%emt 0:01:32]} Ne6 {[%emt 0:01:10]} 29. Qa8+ {[%emt 0:00:26]} Kf7
{[%emt 0:01:24]} 30. a5 {[%emt 0:02:52]} Nxf4 {[%emt 0:00:59]} 31. a6 {[%emt 0:
00:00]} Ne6 {[%emt 0:01:32]} 32. Qf3+ {[%emt 0:01:28]} Kg7 {[%emt 0:00:44]} 33.
a7 {[%emt 0:00:13]} Re8 {[%emt 0:00:20]} 34. a8=Q {[%emt 0:00:11]} Rxa8 {
[%emt 0:00:04]} 35. Qxa8 {[%emt 0:00:07]} Kf7 {[%emt 0:00:30]} 36. b4 {[%emt 0:
00:00]} g5 {[%emt 0:00:16]} 37. Qe4 {[%emt 0:01:38]} Kf6 {[%emt 0:00:32]} 38.
Qh7 {[%emt 0:00:27]} h5 {[%emt 0:00:29]} 39. Qh6+ {[%emt 0:00:54]} Kf5 {
[%emt 0:00:14]} 40. Qxh5 {[%emt 0:00:08]} d5 {[%emt 0:00:11]} 41. Kd2 {[%emt 0:
00:00]} c6 {[%emt 0:30:08]} 42. Qe8 {[%emt 0:00:50]} Nf4 {[%emt 0:00:27]} 43.
Qxc6 {[%emt 0:00:26]} Nxh3 {[%emt 0:00:13]} 44. Qd7+ {[%emt 0:00:06]} Kf4 {
[%emt 0:00:12]} 45. Qxh3 {[%emt 0:00:07]} g4 {[%emt 0:00:08]} 46. Qg2 {[%emt 0:
00:00]} g3 {[%emt 0:00:10]} 47. b5 {[%emt 0:00:07]} d4 {[%emt 0:00:14]} 48. b6
{[%emt 0:00:14]} dxc3+ {[%emt 0:00:06]} 49. Kxc3 {[%emt 0:00:10]} Kg5 {[%emt 0:
00:00]} 50. b7 {[%emt 0:00:07]} Kf5 {[%emt 0:00:11]} 51. b8=Q {[%emt 0:00:12]}
Kf6 {[%emt 0:00:05]} 52. Qb5 {[%emt 0:00:17]} Ke6 {[%emt 0:00:07]} 53. Qgc6+ {
[%emt 0:00:05]} Ke7 {[%emt 0:00:19]} 54. Qbb7+ {[%emt 0:00:06]} Kf8 {[%emt 0:
00:00]} 55. Qcc8# {[%emt 0:00:41]} 1-0

[Event "44th Chess Olympiad Women 2022"]
[Site "Chennai"]
[Date "2022.08.06"]
[Round "8.49"]
[White "Taqwa, Hamouri"]
[Black "Bouah, Denise"]
[Result "1/2-1/2"]
[WhiteElo "1214"]
[BlackElo "1736"]
[Annotator "NA RC"]
[PlyCount "156"]
[EventDate "2022.??.??"]
[TimeControl "60"]

1. e4 {[%emt 0:00:03]} c5 {[%emt 0:00:05]} 2. Nf3 {[%emt 0:00:05]} d6 {[%emt 0:
00:00]} 3. Bb5+ {[%emt 0:00:12]} Nd7 {[%emt 0:00:09]} 4. O-O {[%emt 0:00:27]}
a6 {[%emt 0:00:09]} 5. Bxd7+ {[%emt 0:00:33]} Bxd7 {[%emt 0:00:06]} 6. d4 {
[%emt 0:00:12]} cxd4 {[%emt 0:00:16]} 7. Qxd4 {[%emt 0:00:26]} Nf6 {[%emt 0:00:
00]} 8. Re1 {[%emt 0:03:39]} Qc7 {[%emt 0:17:28]} 9. c4 {[%emt 0:08:50]} Rd8 {
[%emt 0:05:31]} 10. Nc3 {[%emt 0:04:39]} e6 {[%emt 0:01:06]} 11. b3 {[%emt 0:
00:00]} Be7 {[%emt 0:00:41]} 12. h3 {[%emt 0:02:12]} O-O {[%emt 0:01:41]} 13.
Bg5 {[%emt 0:01:36]} Bc6 {[%emt 0:01:45]} 14. Rac1 {[%emt 0:02:18]} b6 {
[%emt 0:02:39]} 15. Qe3 {[%emt 0:04:17]} Qb7 {[%emt 0:06:15]} 16. Nd2 {[%emt 0:
00:00]} Rfe8 {[%emt 0:01:00]} 17. Qg3 {[%emt 0:02:35]} b5 {[%emt 0:08:22]} 18.
cxb5 {[%emt 0:04:36]} axb5 {[%emt 0:00:15]} 19. f3 {[%emt 0:01:01]} b4 {
[%emt 0:05:18]} 20. Ne2 {[%emt 0:01:13]} d5 {[%emt 0:02:28]} 21. e5 {[%emt 0:
00:00]} Nd7 {[%emt 0:01:30]} 22. Bh6 {[%emt 0:07:15]} Bf8 {[%emt 0:04:19]} 23.
Nd4 {[%emt 0:08:08]} Rc8 {[%emt 0:08:03]} 24. h4 {[%emt 0:02:38]} Kh8 {[%emt 0:
00:00]} 25. Be3 {[%emt 0:03:17]} Nc5 {[%emt 0:05:33]} 26. Rc2 {[%emt 0:01:11]}
Nd3 {[%emt 0:01:06]} 27. Rf1 {[%emt 0:00:48]} Bb5 {[%emt 0:00:40]} 28. Rxc8 {
[%emt 0:01:28]} Rxc8 {[%emt 0:00:08]} 29. Rd1 {[%emt 0:00:42]} Bc5 {[%emt 0:00:
00]} 30. h5 {[%emt 0:01:45]} Qb6 {[%emt 0:01:59]} 31. h6 {[%emt 0:08:11]} Rg8 {
[%emt 0:01:56]} 32. Qh4 {[%emt 0:03:35]} Nxe5 {[%emt 0:00:27]} 33. Kh1 {
[%emt 0:02:15]} Ng6 {[%emt 0:01:51]} 34. hxg7+ {[%emt 0:03:42]} Rxg7 {[%emt 0:
00:00]} 35. Qf6 {[%emt 0:02:14]} Be7 {[%emt 0:00:39]} 36. Qxg7+ {[%emt 0:00:36]
} Kxg7 {[%emt 0:00:06]} 37. Nf5+ {[%emt 0:00:07]} exf5 {[%emt 0:00:33]} 38.
Bxb6 {[%emt 0:00:08]} Bf6 {[%emt 0:08:07]} 39. Nf1 {[%emt 0:01:21]} f4 {
[%emt 0:03:23]} 40. g3 {[%emt 0:01:29]} Be2 {[%emt 0:00:16]} 41. Re1 {[%emt 0:
00:00]} Bxf3+ {[%emt 0:30:16]} 42. Kg1 {[%emt 0:00:43]} Bc3 {[%emt 0:01:42]}
43. Re8 {[%emt 0:02:58]} h5 {[%emt 0:04:21]} 44. Kf2 {[%emt 0:01:52]} Be4 {
[%emt 0:01:08]} 45. gxf4 {[%emt 0:01:21]} Nxf4 {[%emt 0:00:33]} 46. Kg3 {
[%emt 0:02:48]} Ne6 {[%emt 0:00:00]} 47. Ne3 {[%emt 0:00:00]} d4 {[%emt 0:00:
00]} 48. Nc4 {[%emt 0:00:00]} d3 {[%emt 0:00:00]} 49. Be3 {[%emt 0:00:00]} Be1+
{[%emt 0:00:00]} 50. Kh2 {[%emt 0:00:00]} h4 {[%emt 0:00:00]} 51. Re7 {[%emt 0:
00:00]} Bg3+ {[%emt 0:00:00]} 52. Kh3 {[%emt 0:00:00]} Bf5+ {[%emt 0:00:00]}
53. Kg2 {[%emt 0:00:00]} Bb8 {[%emt 0:00:00]} 54. Nd2 {[%emt 0:00:00]} h3+ {
[%emt 0:00:00]} 55. Kh1 {[%emt 0:00:00]} Nf4 {[%emt 0:00:00]} 56. Rb7 {[%emt 0:
00:00]} Be5 {[%emt 0:00:00]} 57. Rxb4 {[%emt 0:00:00]} Nd5 {[%emt 0:00:00]} 58.
Rb5 {[%emt 0:00:00]} Bd7 {[%emt 0:00:00]} 59. Rc5 {[%emt 0:00:00]} Nxe3 {
[%emt 0:00:00]} 60. Rxe5 {[%emt 0:00:00]} Bc6+ {[%emt 0:00:00]} 61. Kg1 {
[%emt 0:00:00]} h2+ {[%emt 0:00:00]} 62. Kxh2 {[%emt 0:00:00]} Ng4+ {[%emt 0:
00:00]} 63. Kg3 {[%emt 0:00:00]} Nxe5 {[%emt 0:00:00]} 64. Kf4 {[%emt 0:00:00]}
Kf6 {[%emt 0:00:00]} 65. Ke3 {[%emt 0:00:00]} Ke6 {[%emt 0:00:00]} 66. a4 {
[%emt 0:00:00]} Kd6 {[%emt 0:00:00]} 67. a5 {[%emt 0:00:00]} Bb5 {[%emt 0:00:
00]} 68. Ke4 {[%emt 0:00:08]} Nc6 {[%emt 0:00:46]} 69. Nb1 {[%emt 0:01:35]}
Nxa5 {[%emt 0:00:29]} 70. Nc3 {[%emt 0:00:15]} Ba6 {[%emt 0:00:30]} 71. b4 {
[%emt 0:00:15]} Kc6 {[%emt 0:02:04]} 72. bxa5 {[%emt 0:00:50]} Kc5 {[%emt 0:00:
00]} 73. Ke3 {[%emt 0:02:08]} Kb4 {[%emt 0:00:13]} 74. Nd5+ {[%emt 0:00:45]}
Kxa5 {[%emt 0:00:07]} 75. Nf4 {[%emt 0:00:43]} Kb6 {[%emt 0:02:47]} 76. Nxd3 {
[%emt 0:01:40]} Kc7 {[%emt 0:00:13]} 77. Ne5 {[%emt 0:00:21]} f5 {[%emt 0:00:
00]} 78. Kf4 {[%emt 0:00:22]} Bc8 {[%emt 0:00:10]} 1/2-1/2

[Event "44th Chess Olympiad Women 2022"]
[Site "Chennai"]
[Date "2022.08.06"]
[Round "8.49"]
[White "Van Zyl, Charlize"]
[Black "Heba, Assi"]
[Result "1-0"]
[WhiteElo "1704"]
[BlackElo "1449"]
[Annotator "NA RC"]
[PlyCount "79"]
[EventDate "2022.??.??"]
[TimeControl "60"]

1. d4 {[%emt 0:00:03]} Nf6 {[%emt 0:00:04]} 2. Bf4 {[%emt 0:00:06]} g6 {
[%emt 0:00:35]} 3. Nc3 {[%emt 0:00:41]} Bg7 {[%emt 0:00:37]} 4. e4 {[%emt 0:00:
00]} d6 {[%emt 0:00:40]} 5. Qd2 {[%emt 0:00:47]} O-O {[%emt 0:03:51]} 6. O-O-O
{[%emt 0:00:10]} Re8 {[%emt 0:00:38]} 7. f3 {[%emt 0:02:11]} Nbd7 {[%emt 0:00:
00]} 8. e5 {[%emt 0:02:41]} dxe5 {[%emt 0:02:49]} 9. dxe5 {[%emt 0:00:06]} Nh5
{[%emt 0:01:42]} 10. e6 {[%emt 0:01:40]} fxe6 {[%emt 0:02:10]} 11. Bc4 {
[%emt 0:01:33]} Nxf4 {[%emt 0:02:46]} 12. Qxf4 {[%emt 0:01:54]} h5 {[%emt 0:00:
00]} 13. Bxe6+ {[%emt 0:01:05]} Kh7 {[%emt 0:00:05]} 14. Nh3 {[%emt 0:05:04]}
Rf8 {[%emt 0:07:41]} 15. Ng5+ {[%emt 0:05:34]} Kh8 {[%emt 0:00:03]} 16. Qd2 {
[%emt 0:05:35]} c6 {[%emt 0:09:15]} 17. Bxd7 {[%emt 0:08:14]} Qa5 {[%emt 0:00:
00]} 18. Bxc8 {[%emt 0:05:51]} Raxc8 {[%emt 0:02:13]} 19. Ne6 {[%emt 0:02:58]}
Rf6 {[%emt 0:06:16]} 20. Nxg7 {[%emt 0:02:05]} Kxg7 {[%emt 0:00:05]} 21. Rhe1 {
[%emt 0:01:55]} Rf7 {[%emt 0:05:11]} 22. Kb1 {[%emt 0:05:12]} Qc7 {[%emt 0:00:
00]} 23. Qd7 {[%emt 0:01:27]} Kf8 {[%emt 0:05:56]} 24. Ne4 {[%emt 0:02:12]} e5
{[%emt 0:03:04]} 25. Qxc7 {[%emt 0:00:27]} Rfxc7 {[%emt 0:00:31]} 26. Nd6 {
[%emt 0:07:05]} Rd8 {[%emt 0:03:38]} 27. Nc4 {[%emt 0:01:30]} Rxd1+ {[%emt 0:
00:00]} 28. Rxd1 {[%emt 0:00:02]} Re7 {[%emt 0:00:41]} 29. Re1 {[%emt 0:00:15]}
Kf7 {[%emt 0:00:14]} 30. Rxe5 {[%emt 0:01:42]} Rxe5 {[%emt 0:00:14]} 31. Nxe5+
{[%emt 0:00:04]} Kf6 {[%emt 0:00:35]} 32. Nd3 {[%emt 0:00:59]} Kf5 {[%emt 0:00:
00]} 33. Kc1 {[%emt 0:02:47]} g5 {[%emt 0:00:59]} 34. Kd2 {[%emt 0:00:14]} b6 {
[%emt 0:01:18]} 35. Ke3 {[%emt 0:00:19]} c5 {[%emt 0:00:17]} 36. b3 {[%emt 0:
00:00]} g4 {[%emt 0:01:25]} 37. fxg4+ {[%emt 0:00:52]} hxg4 {[%emt 0:00:58]}
38. g3 {[%emt 0:00:26]} a6 {[%emt 0:02:20]} 39. c4 {[%emt 0:00:10]} Ke6 {
[%emt 0:00:25]} 40. Kf4 {[%emt 0:00:11]} 1-0

[Event "44th Chess Olympiad Women 2022"]
[Site "Chennai"]
[Date "2022.08.06"]
[Round "8.50"]
[White "Ahmad Murad, Fatema Alzahraa."]
[Black "Garcia, Andrea Nicole"]
[Result "1-0"]
[WhiteElo "1791"]
[BlackElo "1631"]
[Annotator "NA RC"]
[PlyCount "65"]
[EventDate "2022.??.??"]
[TimeControl "60"]

1. d4 {[%emt 0:00:04]} d5 {[%emt 0:01:29]} 2. c4 {[%emt 0:00:12]} e6 {[%emt 0:
00:00]} 3. Nc3 {[%emt 0:00:50]} Nf6 {[%emt 0:00:07]} 4. Nf3 {[%emt 0:00:07]}
Nbd7 {[%emt 0:00:33]} 5. Bg5 {[%emt 0:00:41]} Be7 {[%emt 0:00:08]} 6. e3 {
[%emt 0:01:32]} c6 {[%emt 0:00:18]} 7. Be2 {[%emt 0:01:23]} O-O {[%emt 0:05:59]
} 8. O-O {[%emt 0:00:40]} dxc4 {[%emt 0:00:22]} 9. Bxc4 {[%emt 0:00:30]} b5 {
[%emt 0:00:17]} 10. Bd3 {[%emt 0:00:56]} a6 {[%emt 0:00:54]} 11. Qe2 {[%emt 0:
00:00]} Bb7 {[%emt 0:01:34]} 12. Rfd1 {[%emt 0:00:46]} Nd5 {[%emt 0:08:23]} 13.
Bxe7 {[%emt 0:03:22]} Qxe7 {[%emt 0:00:53]} 14. Rac1 {[%emt 0:01:13]} Rac8 {
[%emt 0:05:16]} 15. a4 {[%emt 0:06:52]} Nxc3 {[%emt 0:10:26]} 16. Rxc3 {
[%emt 0:00:45]} g6 {[%emt 0:05:48]} 17. Rdc1 {[%emt 0:04:44]} f5 {[%emt 0:00:
00]} 18. e4 {[%emt 0:03:32]} Qf6 {[%emt 0:04:50]} 19. exf5 {[%emt 0:03:33]}
exf5 {[%emt 0:03:12]} 20. Ne5 {[%emt 0:01:06]} Nxe5 {[%emt 0:01:18]} 21. dxe5 {
[%emt 0:00:47]} Qe6 {[%emt 0:00:44]} 22. Qe3 {[%emt 0:01:58]} Kg7 {[%emt 0:00:
00]} 23. Qb6 {[%emt 0:01:36]} Rf7 {[%emt 0:02:35]} 24. axb5 {[%emt 0:02:20]}
axb5 {[%emt 0:00:21]} 25. Bxb5 {[%emt 0:01:02]} Qxe5 {[%emt 0:00:42]} 26. Bc4 {
[%emt 0:00:23]} Re7 {[%emt 0:04:16]} 27. Re3 {[%emt 0:00:34]} Qf6 {[%emt 0:00:
00]} 28. Rxe7+ {[%emt 0:01:14]} Qxe7 {[%emt 0:00:27]} 29. Qd4+ {[%emt 0:00:07]}
Kh6 {[%emt 0:02:18]} 30. Rc3 {[%emt 0:02:41]} Qe1+ {[%emt 0:01:56]} 31. Bf1 {
[%emt 0:00:07]} Qe4 {[%emt 0:03:49]} 32. Qf6 {[%emt 0:01:27]} f4 {[%emt 0:00:
00]} 33. Rh3# {[%emt 0:00:07]} 1-0